bitfinex/quotes_SOLUSD_20260202
["timestamp","ask_amount","ask_price","bid_price","bid_amount"]
[1770073909273,0.456383,105.09,105.05,3.96223597]
[1770073909455,0.456383,105.09,105.06,3.48431729]
[1770073910491,0.4944647,105.08,105.05,3.96223597]
[1770073920687,0.4944647,105.08,105.05,3.48431729]
[1770073920896,0.4944647,105.06,105.02,3.97747203]
[1770073921199,0.4944647,105.05,105.02,3.97747203]
[1770073921693,0.4944647,105.03,104.99,0.49315474]
[1770073921874,0.4944647,105.03,105.0,3.97747203]
[1770073922072,3.97878199,105.02,104.98,3.97747203]
[1770073922391,0.4944647,105.01,104.99,0.49315474]
[1770073922798,0.4944647,105.0,104.97,3.97747203]
[1770073923001,0.4944647,105.0,104.98,0.49315474]
[1770073923491,0.4944647,105.01,104.98,3.97747203]
[1770073923871,0.4944647,105.02,104.99,3.97747203]
[1770073924272,0.4944647,105.02,104.99,0.49315474]
[1770073925197,0.4944647,105.02,104.99,3.97747203]
[1770073925401,13.00475402,105.04,104.99,3.97747203]
[1770073925609,23.79859146,105.05,105.02,0.49315474]
[1770073925610,10.01416861,105.05,105.02,0.49315474]
[1770073925897,0.4944647,105.05,105.02,0.49315474]
[1770073927399,0.4944647,105.05,105.02,3.97747203]
[1770073927604,0.4944647,105.06,105.03,3.97747203]
[1770073930784,0.4944647,105.06,105.03,0.49315474]
[1770073930986,0.4944647,105.06,105.03,3.97747203]
[1770073935413,10.01287706,105.06,105.03,3.97747203]
[1770073935607,9.51841236,105.06,105.03,3.97747203]
[1770073935809,0.4944647,105.05,105.02,3.48431729]
[1770073940515,0.4944647,105.05,105.02,3.95684747]
[1770073942910,0.4944647,105.05,105.01,3.95684747]
[1770073943113,0.49748886,105.04,105.01,3.48431729]
[1770073943303,0.49748886,105.04,105.01,3.95684747]
[1770073944124,0.49748886,105.05,105.02,0.47253018]
[1770073944417,0.49748886,105.05,105.02,3.95684747]
[1770073948323,13.00249846,105.07,105.03,3.95684747]
[1770073948622,0.49748886,105.06,105.03,3.95684747]
[1770073952926,0.49748886,105.05,105.02,3.48431729]
[1770073953109,0.49748886,105.05,105.02,3.95684747]
[1770073953621,0.49748886,105.05,105.03,0.47253018]
[1770073953831,0.49748886,105.06,105.03,3.95684747]
[1770073960223,23.79141902,105.08,105.04,0.47253018]
[1770073960427,0.49748886,105.09,105.07,3.48487364]
[1770073961324,0.49748886,105.09,105.06,3.95740382]
[1770073964513,0.49748886,105.09,105.07,3.48487364]
[1770073964815,0.49748886,105.09,105.06,3.48487364]
[1770073965020,0.49748886,105.08,105.06,3.48487364]
[1770073965225,0.49748886,105.08,105.06,3.95740382]
[1770073966835,0.49748886,105.08,105.06,0.47253018]
[1770073967130,0.49748886,105.08,105.05,3.95740382]
[1770073967835,0.49748886,105.08,105.06,3.48487364]
[1770073969235,0.49748886,105.09,105.07,3.48487364]
[1770073969934,0.49748886,105.09,105.06,0.47253018]
[1770073969935,0.49748886,105.09,105.06,3.48487364]
[1770073970543,0.49748886,105.09,105.06,3.94852665]
[1770073970746,0.46818659,105.08,105.06,3.48487364]
[1770073972125,0.46818659,105.08,105.05,3.94852665]
[1770073974450,0.46818659,105.08,105.05,0.46365301]
[1770073974630,0.46818659,105.07,105.05,3.48487364]
[1770073975053,0.46818659,105.07,105.05,3.94852665]
[1770073977759,0.46818659,105.08,105.06,3.94852665]
[1770073977963,0.46818659,105.08,105.06,3.48487364]
[1770073978130,0.46818659,105.08,105.05,0.46365301]
[1770073978131,9.98475045,105.08,105.05,3.94852665]
[1770073978636,0.46818659,105.08,105.05,3.94852665]
[1770073980652,0.46818659,105.07,105.04,0.46365301]
[1770073980949,13.00185605,105.08,105.01,0.46365301]
[1770073980950,0.46818659,105.04,105.01,0.46365301]
[1770073981250,0.46818659,105.04,105.01,3.94852665]
[1770073981750,0.46818659,105.01,104.98,0.46365301]
[1770073982055,0.46818659,105.0,104.98,0.46365301]
[1770073982557,3.95306023,105.01,104.98,0.46365301]
[1770073982736,0.46818659,105.01,104.98,0.46365301]
[1770073983147,0.46818659,105.02,104.99,0.46365301]
[1770073983456,0.46818659,105.03,105.0,0.46365301]
[1770073983653,0.46818659,105.03,105.0,3.94852665]
[1770073983837,0.46818659,105.04,105.01,3.94852665]
[1770073984042,0.46818659,105.04,105.01,0.46365301]
[1770073986346,0.46818659,105.05,105.02,3.94852665]
[1770073988968,0.46818659,105.05,105.02,0.46365301]
[1770073989872,0.46818659,105.04,105.0,0.46365301]
[1770073990037,0.46818659,105.03,105.0,3.94852665]
[1770073993836,0.46818659,105.04,105.01,3.94852665]
[1770073994558,0.46818659,105.03,105.0,3.94852665]
[1770073998557,0.46818659,105.02,104.99,3.94852665]
[1770074000641,0.49789835,105.03,105.0,0.46242459]
[1770074000842,0.49789835,105.03,105.0,3.94729823]
[1770074005061,0.49789835,105.03,105.0,0.46242459]
[1770074006660,0.49789835,105.03,105.0,3.94729823]
[1770074007156,0.49789835,105.03,105.0,0.46242459]
[1770074007658,0.49789835,105.02,104.98,0.46242459]
[1770074007853,0.49789835,105.02,104.99,0.46242459]
[1770074008047,0.49789835,105.02,104.99,3.94729823]
[1770074009868,0.49789835,105.03,105.01,0.46242459]
[1770074010053,0.49789835,105.03,105.0,3.94729823]
[1770074011564,0.49789835,105.05,105.02,3.94729823]
[1770074014367,0.49789835,105.05,105.02,0.46242459]
[1770074014568,0.49789835,105.05,105.01,3.94729823]
[1770074015181,0.49789835,105.03,105.0,3.48487364]
[1770074015476,0.49789835,105.03,105.0,3.94729823]
[1770074016571,0.49789835,105.03,105.01,3.48487364]
[1770074019768,0.49789835,105.03,105.0,0.46242459]
[1770074019769,10.0175383,105.05,105.02,3.48487364]
[1770074020069,0.49789835,105.05,105.03,3.48487364]
[1770074020463,0.49789835,105.05,105.03,3.48750515]
[1770074021878,3.48750515,105.04,104.97,4.73769544]
[1770074022073,3.48750515,105.0,104.96,3.48750515]
[1770074022273,0.49789835,104.99,104.96,3.94992974]
[1770074022978,0.49789835,104.99,104.97,3.94992974]
[1770074023184,3.48750515,105.02,104.98,3.94992974]
[1770074023185,9.52233326,105.02,104.98,3.94992974]
[1770074023757,9.52233326,105.02,104.99,3.48750515]
[1770074024669,9.52233326,105.02,104.99,3.94992974]
[1770074024980,9.52233326,105.02,104.99,3.48750515]
[1770074025184,0.49789835,105.01,104.99,3.48750515]
[1770074026177,0.49789835,105.01,104.98,3.94992974]
[1770074028369,0.49789835,105.02,104.99,3.94992974]
[1770074028570,0.49789835,105.02,105.0,3.48750515]
[1770074028768,0.49789835,105.0,104.95,3.68750515]
[1770074028966,0.49789835,104.98,104.95,3.68750515]
[1770074029274,0.49789835,104.98,104.95,0.66242459]
[1770074029460,0.49789835,104.98,104.95,0.2]
[1770074029660,0.49789835,104.96,104.93,3.94992974]
[1770074029866,0.49789835,104.96,104.92,4.16609791]
[1770074029867,0.4810499,104.95,104.92,4.16609791]
[1770074030374,3.98027619,104.96,104.92,4.16609791]
[1770074030583,0.49277104,104.96,104.92,4.16609791]
[1770074030783,10.02026314,104.96,104.92,4.16609791]
[1770074031391,0.49277104,104.96,104.93,3.96342253]
[1770074032295,0.49277104,104.96,104.94,3.48750515]
[1770074035086,10.01960278,104.97,104.94,3.96342253]
[1770074035292,13.50631171,104.98,104.95,0.47591738]
[1770074035474,0.49277104,104.97,104.94,3.96342253]
[1770074036079,0.49277104,104.99,104.96,3.96342253]
[1770074038024,0.49277104,104.99,104.97,3.48750515]
[1770074038189,0.49277104,104.99,104.96,3.96342253]
[1770074039908,10.01600865,105.01,104.98,3.96342253]
[1770074040298,0.49277104,105.01,104.98,3.96342253]
[1770074040495,10.0151391,105.02,104.99,3.48750515]
[1770074041586,27.29194592,105.03,104.98,0.47591738]
[1770074041587,10.01568715,105.01,104.98,3.96342253]
[1770074042612,10.01527885,105.02,104.99,3.96342253]
[1770074044309,10.01527885,105.02,104.99,0.47591738]
[1770074044515,0.49277104,105.01,104.98,3.96342253]
[1770074049806,10.01527885,105.02,104.99,0.47591738]
[1770074050504,0.49277104,105.01,104.99,0.47591738]
[1770074050820,13.502784,105.02,104.99,0.47591738]
[1770074051217,10.01527885,105.02,104.99,0.47591738]
[1770074051718,10.01527885,105.02,104.99,3.96342253]
[1770074051719,10.01523656,105.02,104.99,3.96342253]
[1770074052407,0.49277104,105.01,104.99,0.47591738]
[1770074059021,10.01523656,105.02,104.99,0.47591738]
[1770074059221,0.49277104,105.02,104.99,3.96342253]
[1770074061225,10.01492264,105.02,104.99,3.96342253]
[1770074062430,13.48953128,105.03,105.0,0.47824091]
[1770074062928,0.48048792,105.02,105.0,0.47824091]
[1770074063424,0.48048792,105.02,104.99,3.96574606]
[1770074064921,10.00253509,105.02,104.99,3.96574606]
[1770074065310,0.48048792,105.01,104.98,3.96574606]
[1770074065508,0.48048792,105.0,104.98,0.47824091]
[1770074067028,10.00404991,105.01,104.99,0.47824091]
[1770074067527,10.00404991,105.01,104.98,3.96574606]
[1770074068128,9.52238437,105.02,105.0,0.47824091]
[1770074068331,8.24028216,105.02,105.0,3.96574606]
[1770074068536,10.00205417,105.03,105.0,0.47824091]
[1770074069415,9.52156625,105.03,105.01,0.47824091]
[1770074069736,10.00118955,105.04,105.01,0.47824091]
[1770074070121,10.00118955,105.04,105.01,3.96574606]
[1770074070622,0.48048792,105.03,105.0,3.96574606]
[1770074071335,0.48048792,105.03,105.01,0.47824091]
[1770074071723,33.32115859,105.04,104.98,3.48750515]
[1770074071724,0.48048792,105.01,104.98,3.48750515]
[1770074073733,0.48048792,105.01,104.98,3.96574606]
[1770074074141,0.48048792,105.01,104.99,0.47824091]
[1770074074636,0.48048792,105.01,104.97,0.47824091]
[1770074074637,0.48048792,105.0,104.97,0.47824091]
[1770074074827,0.48048792,105.0,104.97,3.96574606]
[1770074075227,10.00381586,105.01,104.98,0.47824091]
[1770074075623,0.48048792,105.0,104.98,0.47824091]
[1770074081551,10.00436469,105.0,104.97,3.96574606]
[1770074082149,0.48048792,105.0,104.97,3.96574606]
[1770074082460,0.48048792,105.0,104.97,3.96946854]
[1770074082959,0.48048792,105.0,104.98,0.47824091]
[1770074085958,0.48048792,104.99,104.94,9.52886974]
[1770074086177,0.48048792,104.98,104.95,3.49122763]
[1770074087257,0.48048792,104.98,104.94,3.49122763]
[1770074088160,0.48048792,104.98,104.95,0.47824091]
[1770074089834,0.48048792,104.98,104.93,0.49816451]
[1770074089835,3.49122763,104.96,104.93,0.49816451]
[1770074090056,0.45049858,104.95,104.93,0.4781998]
[1770074090362,13.12736036,105.0,104.92,0.2]
[1770074090363,10.01665557,104.98,104.95,0.4781998]
[1770074090563,0.49052138,104.97,104.94,3.96942743]
[1770074091455,0.49052138,104.97,104.95,3.96942743]
[1770074091759,0.49052138,104.98,104.95,3.96942743]
[1770074092955,0.49052138,104.98,104.96,3.49122763]
[1770074093342,10.01623957,104.98,104.95,0.4781998]
[1770074093543,10.01623957,104.98,104.95,3.96942743]
[1770074093764,0.49052138,104.98,104.95,3.96942743]
[1770074096059,0.49052138,104.98,104.96,3.49122763]
[1770074096261,0.49052138,104.99,104.97,3.49122763]
[1770074096450,0.49052138,104.99,104.94,9.52884287]
[1770074096653,0.49052138,104.99,104.97,3.49122763]
[1770074099456,0.49052138,104.99,104.94,9.52884287]
[1770074099457,10.01396719,105.01,104.98,3.5193133]
[1770074099651,0.49052138,105.01,104.98,3.5193133]
[1770074099966,0.49052138,105.01,104.99,3.49122763]
[1770074101471,0.49052138,105.0,104.98,3.49122763]
[1770074102277,0.49052138,105.0,104.96,0.02808567]
[1770074102452,0.49052138,105.0,104.97,3.49122763]
[1770074102772,0.49052138,104.97,104.93,9.55786127]
[1770074102944,0.49052138,104.97,104.94,3.5193133]
[1770074103273,0.49052138,104.97,104.95,3.49122763]
[1770074104157,0.49052138,104.98,104.95,3.5193133]
[1770074104852,0.49052138,104.98,104.92,24.02591964]
[1770074104853,10.01477184,105.0,104.97,3.49122763]
[1770074105169,0.49052138,104.99,104.97,3.49122763]
[1770074105564,10.01394274,105.01,104.98,3.5193133]
[1770074105767,0.49052138,105.0,104.98,3.49122763]
[1770074106361,0.49052138,105.01,104.98,3.5193133]
[1770074106559,0.49052138,105.01,104.98,3.49122763]
[1770074108852,0.49052138,105.01,104.99,3.49122763]
[1770074110878,0.49052138,105.0,104.98,3.49122763]
[1770074113090,0.49052138,105.01,104.99,3.49122763]
[1770074113787,0.49052138,105.02,105.0,3.49122763]
[1770074114495,10.01192655,105.03,105.01,3.49122763]
[1770074114866,0.49052138,105.03,105.01,3.49122763]
[1770074115466,36.00056253,105.04,105.02,3.49122763]
[1770074115467,0.49052138,105.04,105.02,3.49122763]
[1770074118069,10.01032714,105.05,105.02,3.49122763]
[1770074118703,0.49052138,105.06,105.03,3.5193133]
[1770074118892,0.49052138,105.06,105.03,3.49122763]
[1770074119096,0.49052138,105.06,105.04,3.49122763]
[1770074120100,0.49052138,105.06,105.03,3.49122763]
[1770074120394,0.48595716,105.05,105.03,3.49122763]
[1770074120701,0.48595716,105.04,105.01,3.49122763]
[1770074121985,0.48595716,105.05,105.03,3.49122763]
[1770074122186,0.48595716,105.06,105.04,3.49122763]
[1770074122694,0.48595716,105.06,105.05,3.49122763]
[1770074123291,10.00436135,105.06,105.04,3.49122763]
[1770074123486,7.6625324,105.06,105.03,3.96630664]
[1770074124401,7.6625324,105.06,105.04,3.49122763]
[1770074125497,0.45471575,105.05,105.02,3.49122763]
[1770074125695,0.45471575,105.05,105.01,3.96630664]
[1770074127601,34.94968616,105.06,105.01,3.96630664]
[1770074127602,9.97489853,105.04,105.01,3.96630664]
[1770074128497,9.97489853,105.04,105.0,3.96630664]
[1770074128498,0.45471575,105.03,105.0,3.96630664]
[1770074131402,0.45471575,105.03,105.01,3.49122763]
[1770074131706,0.45471575,105.04,105.02,3.49122763]
[1770074131897,9.97453211,105.05,105.03,3.49122763]
[1770074132293,0.45471575,105.05,105.03,3.49122763]
[1770074135218,36.53271105,105.07,105.04,3.96630664]
[1770074137813,36.0779953,105.07,105.04,3.96630664]
[1770074137992,0.45471575,105.06,105.04,3.49122763]
[1770074142114,9.97308777,105.06,105.03,3.96630664]
[1770074142324,0.45471575,105.05,105.02,3.49122763]
[1770074142616,0.45471575,105.04,105.02,3.49122763]
[1770074143002,0.45471575,105.05,105.02,3.96630664]
[1770074144008,0.45471575,105.05,105.02,3.49122763]
[1770074144511,0.45471575,105.05,105.02,3.48809227]
[1770074144814,9.97451765,105.05,105.02,3.48809227]
[1770074145316,0.45471575,105.04,105.02,3.48809227]
[1770074146123,9.97451765,105.05,105.03,3.48809227]
[1770074146504,0.45471575,105.04,105.02,3.96317128]
[1770074148515,0.45471575,105.03,105.01,3.48809227]
[1770074149707,0.45471575,105.03,105.0,3.96317128]
[1770074149908,0.45471575,105.02,104.99,3.48809227]
[1770074150119,0.45471575,105.02,104.98,3.96994973]
[1770074150415,0.49448493,105.01,104.98,3.96994973]
[1770074153924,0.49448493,105.01,104.99,3.48809227]
[1770074157118,0.48670417,105.02,104.99,3.98156834]
[1770074157422,0.48670417,105.02,104.98,3.98156834]
[1770074158514,0.48670417,105.02,104.99,3.98156834]
[1770074160831,9.52018278,105.04,105.0,0.49347607]
[1770074161125,0.48670417,105.05,105.02,3.48809227]
[1770074161331,0.48670417,105.05,105.01,3.98156834]
[1770074161727,0.48670417,105.05,105.02,3.48809227]
[1770074162230,10.00619375,105.05,105.02,3.98156834]
[1770074163132,10.00619375,105.05,105.03,3.48809227]
[1770074163332,0.48670417,105.06,105.04,3.48809227]
[1770074165436,10.0037497,105.08,105.05,3.98156834]
[1770074165616,10.0037497,105.08,105.06,3.48809227]
[1770074166123,0.48670417,105.08,105.07,3.48809227]
[1770074167218,10.00248225,105.09,105.07,3.48809227]
[1770074167830,0.48670417,105.08,105.05,3.48809227]
[1770074168216,0.48670417,105.08,105.04,3.98156834]
[1770074168623,0.48670417,105.08,105.05,3.48809227]
[1770074169240,10.00399142,105.08,105.05,3.48809227]
[1770074169444,0.48670417,105.07,105.05,3.48809227]
[1770074175046,0.48670417,105.07,105.05,3.98156834]
[1770074176957,0.48670417,105.08,105.06,3.48809227]
[1770074177438,10.0033018,105.08,105.06,3.48809227]
[1770074177643,0.48670417,105.07,105.05,3.98156834]
[1770074178039,0.48670417,105.07,105.05,3.48809227]
[1770074178852,0.48670417,105.05,105.03,0.49347607]
[1770074179149,0.48670417,105.05,105.02,3.98156834]
[1770074179366,0.48670417,105.05,105.03,3.48809227]
[1770074179655,9.51837045,105.06,105.03,3.98156834]
[1770074179656,10.00507462,105.06,105.03,3.98156834]
[1770074181271,0.48670417,105.06,105.04,3.48809227]
[1770074183030,10.01002687,105.08,105.05,3.48809227]
[1770074183431,0.49346806,105.07,105.05,3.48809227]
[1770074183835,0.49346806,105.07,105.04,3.48809227]
[1770074186356,9.51837045,105.06,105.04,3.48809227]
[1770074186662,0.49346806,105.05,105.03,3.48809227]
[1770074186839,0.49346806,105.05,105.02,3.48809227]
[1770074187157,0.49346806,105.05,105.02,3.96426613]
[1770074187762,0.49346806,105.04,105.0,0.47617386]
[1770074187951,0.49346806,105.04,105.0,3.96426613]
[1770074188354,0.49346806,105.03,105.0,3.96426613]
[1770074189468,0.49346806,105.03,105.0,0.47617386]
[1770074189647,0.49346806,105.03,105.0,3.96426613]
[1770074192270,10.01459451,105.03,105.0,3.96426613]
[1770074196070,10.01368801,105.04,105.01,0.47617386]
[1770074196259,9.52021995,105.04,105.02,0.47617386]
[1770074196565,10.01368801,105.04,105.02,0.47617386]
[1770074196776,10.01368801,105.04,105.01,3.96426613]
[1770074197869,0.49346806,105.03,105.0,3.96426613]
[1770074198546,0.49346806,105.01,104.98,3.96426613]
[1770074198780,0.35707718,105.01,104.99,0.47617386]
[1770074199350,0.35707718,105.01,104.98,3.48809227]
[1770074199549,0.35707718,105.01,104.98,3.96426613]
[1770074199950,9.88036846,105.01,104.98,3.96426613]
[1770074200358,9.88036846,105.01,104.98,0.47617386]
[1770074201856,0.49346806,105.0,104.98,0.47617386]
[1770074202774,9.52329128,105.01,104.98,3.96426613]
[1770074202775,10.01675934,105.01,104.98,3.96426613]
[1770074203477,10.01593403,105.02,104.99,3.96426613]
[1770074204062,24.29601663,105.04,105.01,3.96426613]
[1770074204380,0.49346806,105.04,105.01,3.96501646]
[1770074204876,10.01417419,105.04,105.01,3.96501646]
[1770074205278,0.49346806,105.03,105.01,3.96501646]
[1770074211280,10.01209289,105.05,105.03,0.48309397]
[1770074211580,0.49242238,105.04,105.03,3.4888426]
[1770074214587,0.49242238,105.04,104.95,4.27527085]
[1770074214768,0.49242238,105.0,104.96,0.48309397]
[1770074215085,0.49242238,105.0,104.98,0.48309397]
[1770074215281,10.01624606,105.0,104.97,3.97193657]
[1770074215884,13.50508866,105.0,104.97,0.48309397]
[1770074216272,10.01624606,105.0,104.97,0.48309397]
[1770074216488,0.49242238,104.99,104.96,3.97193657]
[1770074217192,10.01624606,105.0,104.97,0.48309397]
[1770074217389,0.49242238,104.99,104.96,3.97193657]
[1770074220188,10.01718286,104.99,104.96,3.97193657]
[1770074220394,0.49242238,104.98,104.95,0.48309397]
[1770074220694,0.49242238,104.97,104.94,3.97193657]
[1770074220896,0.49242238,104.97,104.94,0.48309397]
[1770074221394,10.0191183,104.97,104.94,0.48309397]
[1770074221894,0.49242238,104.96,104.94,0.48309397]
[1770074222103,0.49242238,104.96,104.93,3.97193657]
[1770074222404,0.49242238,104.96,104.92,0.2]
[1770074222569,0.49242238,104.94,104.92,0.2]
[1770074222986,0.49242238,104.93,104.91,0.2]
[1770074223583,0.49242238,104.94,104.91,0.68309397]
[1770074223882,13.51097442,104.94,104.91,0.68309397]
[1770074224291,10.02213182,104.94,104.91,0.68309397]
[1770074224898,10.02213182,104.94,104.91,4.17193657]
[1770074225076,10.0198614,104.96,104.93,3.97193657]
[1770074225280,0.49242238,104.95,104.92,3.4888426]
[1770074225679,9.52925481,104.94,104.91,4.17193657]
[1770074226285,10.02123091,104.95,104.92,3.97193657]
[1770074227897,23.81859756,104.96,104.94,3.97193657]
[1770074227898,10.02004424,104.96,104.94,3.97193657]
[1770074228301,0.49242238,104.96,104.94,3.97193657]
[1770074228482,10.01943314,104.97,104.94,3.97193657]
[1770074229683,10.01943314,104.97,104.95,3.4888426]
[1770074233298,0.49242238,104.99,104.97,0.48309397]
[1770074233498,0.49242238,104.99,104.97,3.4888426]
[1770074234701,0.49242238,104.99,104.98,3.4888426]
[1770074234998,0.49242238,104.99,104.97,3.4888426]
[1770074237199,9.52489277,104.99,104.97,3.4888426]
[1770074237385,0.49242238,104.98,104.96,3.4888426]
[1770074237702,10.01731515,104.99,104.96,3.97193657]
[1770074237900,10.01731515,104.99,104.97,3.4888426]
[1770074238784,0.49242238,104.98,104.96,3.4888426]
[1770074239307,0.49242238,104.99,104.97,3.97193657]
[1770074239492,0.49242238,104.99,104.97,3.4888426]
[1770074242707,36.48417118,105.0,104.97,3.96934839]
[1770074243109,0.47983272,104.99,104.97,3.96934839]
[1770074243832,26.48,105.0,104.98,3.96934839]
[1770074244017,26.48,105.0,104.99,3.4888426]
[1770074244313,10.00314265,105.01,104.99,3.4888426]
[1770074244512,0.47983272,104.99,104.93,0.48050579]
[1770074244722,0.47983272,104.97,104.94,0.48050579]
[1770074244887,0.47983272,104.97,104.93,3.96934839]
[1770074245286,0.47983272,104.96,104.94,3.96934839]
[1770074245713,0.47983272,104.96,104.94,0.48050579]
[1770074245911,0.47983272,104.95,104.92,0.48050579]
[1770074246208,0.47983272,104.94,104.92,0.48050579]
[1770074248611,0.47983272,104.94,104.91,3.6888426]
[1770074248612,0.47983272,104.93,104.91,1e-08]
[1770074248809,0.47983272,104.91,104.88,0.2]
[1770074249010,0.47983272,104.9,104.88,0.2]
[1770074249220,0.47983272,104.91,104.88,0.68050579]
[1770074249527,0.47983272,104.91,104.88,4.16934839]
[1770074249828,10.0118445,104.91,104.88,0.68050579]
[1770074250709,0.47983272,104.9,104.86,0.2]
[1770074250909,0.47983272,104.87,104.85,0.2]
[1770074252503,3.96867532,104.87,104.85,0.2]
[1770074253130,9.53652489,104.86,104.85,0.2]
[1770074253625,13.50472711,104.87,104.85,0.2]
[1770074253919,9.53605179,104.87,104.85,0.68050579]
[1770074258510,10.01588451,104.87,104.85,0.2]
[1770074259332,27.80210078,104.9,104.87,0.48050579]
[1770074259539,27.80210078,104.9,104.86,3.4888426]
[1770074259540,13.50247263,104.89,104.86,0.48050579]
[1770074260224,3.96867532,104.88,104.85,0.68050579]
[1770074260610,9.53561552,104.87,104.85,0.68050579]
[1770074264410,9.53495029,104.88,104.86,0.48050579]
[1770074270734,10.02394046,104.88,104.86,0.48050579]
[1770074273526,0.48899017,104.87,104.85,0.67652991]
[1770074274037,10.02394046,104.88,104.85,0.67652991]
[1770074276739,10.02394046,104.88,104.86,0.47652991]
[1770074276939,33.3687959,104.89,104.87,0.47652991]
[1770074277321,33.85778607,104.89,104.87,0.47652991]
[1770074277522,9.53334846,104.9,104.87,0.47652991]
[1770074277724,10.02233863,104.9,104.87,0.47652991]
[1770074279337,10.02233863,104.9,104.86,0.47652991]
[1770074279338,0.48899017,104.89,104.86,0.47652991]
[1770074280923,33.85455979,104.9,104.87,0.47652991]
[1770074283239,0.48899017,104.89,104.86,3.97595303]
[1770074283441,0.48899017,104.89,104.86,0.47652991]
[1770074285827,10.02296724,104.89,104.86,0.47652991]
[1770074287252,10.02296724,104.89,104.86,3.97595303]
[1770074290846,10.02296724,104.89,104.87,0.47652991]
[1770074297358,10.02265032,104.9,104.87,0.47652991]
[1770074297860,0.48899017,104.89,104.87,0.47652991]
[1770074300245,10.02315643,104.89,104.87,0.47652991]
[1770074303454,0.4899011,104.88,104.85,0.684626]
[1770074303768,0.4899011,104.88,104.86,0.484626]
[1770074304775,10.02469877,104.88,104.86,0.484626]
[1770074317881,0.4899011,104.88,104.86,0.484626]
[1770074318666,0.4899011,104.88,104.86,3.98404912]
[1770074318884,42.11875321,104.91,104.88,0.484626]
[1770074319471,42.11875321,104.91,104.89,0.484626]
[1770074319860,42.11875321,104.91,104.88,0.484626]
[1770074320974,0.45966519,104.9,104.88,0.484626]
[1770074321175,42.5784184,104.91,104.88,3.98404912]
[1770074321985,42.5784184,104.91,104.88,0.484626]
[1770074322186,42.5784184,104.91,104.88,3.98404912]
[1770074325389,42.5784184,104.91,104.88,0.484626]
[1770074326089,0.45966519,104.9,104.86,0.484626]
[1770074326268,0.45966519,104.89,104.86,0.484626]
[1770074326472,0.45966519,104.89,104.87,0.484626]
[1770074327075,9.99296155,104.9,104.87,0.484626]
[1770074327484,0.45966519,104.9,104.87,0.484626]
[1770074327888,0.45966519,104.9,104.88,0.484626]
[1770074332397,15.61882766,104.91,104.88,0.484626]
[1770074332398,16.07464198,104.91,104.88,0.484626]
[1770074334599,6.08631745,104.91,104.9,0.45932616]
[1770074339008,26.5,104.95,104.9,16.5288088]
[1770074339193,6.60246749,104.97,104.94,3.49796017]
[1770074339505,0.47983259,104.96,104.94,3.49796017]
[1770074342416,0.47983259,104.95,104.93,3.49796017]
[1770074342590,15.64965557,104.97,104.94,3.49796017]
[1770074344503,15.64965557,104.97,104.93,3.49796017]
[1770074344702,0.45581432,104.96,104.93,3.49796017]
[1770074345811,9.9833321,104.96,104.93,3.49796017]
[1770074346016,0.45581432,104.95,104.93,3.49796017]
[1770074347797,0.45581432,104.95,104.92,0.45932616]
[1770074348002,0.45581432,104.95,104.91,3.95728633]
[1770074354217,0.45581432,104.93,104.9,3.49796017]
[1770074356395,0.45581432,104.93,104.9,3.95728633]
[1770074361022,0.57713904,104.95,104.92,4.11786385]
[1770074362302,0.57713904,104.95,104.92,3.49796017]
[1770074362509,0.57713904,104.95,104.92,4.11786385]
[1770074362912,0.57713904,104.95,104.93,0.61990368]
[1770074364821,16.22678091,104.97,104.94,0.61990368]
[1770074366407,19.72474108,104.97,104.94,0.61990368]
[1770074366815,10.10472701,104.96,104.94,0.61990368]
[1770074367311,0.57713904,104.94,104.91,0.61990368]
[1770074368006,0.57713904,104.94,104.91,4.11786385]
[1770074368330,0.57713904,104.94,104.92,0.61990368]
[1770074369521,0.57713904,104.93,104.91,0.61990368]
[1770074370227,10.106503,104.94,104.91,0.61990368]
[1770074370819,0.57713904,104.93,104.91,0.61990368]
[1770074372229,0.57713904,104.92,104.88,10.15418107]
[1770074372419,0.57713904,104.92,104.89,0.61990368]
[1770074372727,0.57713904,104.92,104.89,4.11786385]
[1770074373529,0.57713904,104.92,104.89,0.61990368]
[1770074377635,0.57713904,104.92,104.89,4.11786385]
[1770074381145,13.60485593,104.94,104.91,0.61990368]
[1770074381349,10.10689576,104.94,104.91,4.11786385]
[1770074383637,10.10689576,104.94,104.87,23.8387484]
[1770074383638,36.58503168,104.96,104.93,0.61990368]
[1770074384229,36.58503168,104.96,104.93,4.11786385]
[1770074386843,0.57713904,104.95,104.92,4.11786385]
[1770074388246,10.10552127,104.95,104.92,4.11786385]
[1770074388542,10.10552127,104.95,104.92,4.11422876]
[1770074389044,0.57713904,104.95,104.92,4.11422876]
[1770074389647,0.57713904,104.95,104.92,0.61990368]
[1770074390855,0.7423366,104.92,104.89,0.77368857]
[1770074391345,4.23666168,104.93,104.89,0.77368857]
[1770074391529,4.23666168,104.94,104.9,3.49432508]
[1770074391728,13.76619119,104.94,104.91,0.77368857]
[1770074393951,0.7423366,104.93,104.91,0.77368857]
[1770074398454,4.23666168,104.93,104.91,0.77368857]
[1770074398751,0.7423366,104.93,104.91,0.77368857]
[1770074400535,0.7423366,104.92,104.9,0.77368857]
[1770074400836,0.7423366,104.91,104.88,0.77368857]
[1770074401042,4.23666168,104.91,104.88,0.77368857]